bitfinex/quotes_SOLUSD_20250821
["timestamp","ask_amount","ask_price","bid_price","bid_amount"]
[1755792622159,7.47509471,182.08,182.05,44.32]
[1755792622378,7.47509471,182.08,182.05,45.03]
[1755792622693,0.14216157,182.11,182.06,0.71]
[1755792622860,7.47509471,182.08,182.07,44.3]
[1755792623065,7.47509471,182.08,182.03,7.47509471]
[1755792623066,8.47941785,182.08,182.06,44.3]
[1755792623273,7.47509471,182.07,182.06,44.3]
[1755792623481,0.72,182.11,182.06,44.3]
[1755792623692,7.47509471,182.07,182.06,44.3]
[1755792623861,0.28432314,182.09,182.06,44.3]
[1755792624062,7.47509471,182.07,182.06,44.3]
[1755792624487,7.47509471,182.08,182.06,44.3]
[1755792624662,7.47509471,182.08,182.06,45.01]
[1755792624862,7.47509471,182.08,182.06,44.3]
[1755792625089,0.28432314,182.09,182.06,44.3]
[1755792625090,7.47509471,182.07,182.06,44.3]
[1755792625469,7.47509471,182.08,182.06,44.3]
[1755792626463,7.47509471,182.07,182.06,44.3]
[1755792628062,7.47509471,182.07,182.06,45.01]
[1755792628263,7.47509471,182.07,182.06,44.3]
[1755792628457,7.47509471,182.08,182.06,44.3]
[1755792628677,0.14216157,182.12,182.07,0.71]
[1755792628874,7.47509471,182.1,182.07,80.51]
[1755792629489,7.47509471,182.09,182.07,80.51]
[1755792629791,0.14216157,182.12,182.08,0.71]
[1755792629990,7.47509471,182.12,182.09,45.01]
[1755792630289,7.47509471,182.13,182.1,45.01]
[1755792630500,7.47509471,182.13,182.1,124.81]
[1755792630708,7.47509471,182.13,182.11,0.71]
[1755792630914,0.06,182.18,182.12,45.01]
[1755792630915,7.47509471,182.14,182.12,45.01]
[1755792631209,0.14216157,182.14,182.13,0.71]
[1755792631386,7.47509471,182.16,182.13,80.51]
[1755792631591,7.47509471,182.15,182.14,44.3]
[1755792632505,8.19509471,182.15,182.1,26.0]
[1755792632684,0.14216157,182.14,182.11,44.28]
[1755792632876,0.14216157,182.14,182.11,44.99]
[1755792633305,0.06,182.15,182.11,44.99]
[1755792633795,7.47509471,182.13,182.11,44.99]
[1755792634283,0.28432314,182.14,182.07,80.51]
[1755792634284,7.47509471,182.12,182.07,80.51]
[1755792634484,7.47509471,182.11,182.08,44.99]
[1755792634685,7.47509471,182.12,182.09,0.71]
[1755792634888,7.47509471,182.12,182.1,44.28]
[1755792635208,7.47509471,182.11,182.1,44.28]
[1755792636116,7.47509471,182.11,182.09,44.28]
[1755792636117,0.28432314,182.1,182.09,44.28]
[1755792636320,7.75941785,182.1,182.09,44.28]
[1755792636881,7.75941785,182.1,182.08,44.28]
[1755792637111,0.28432314,182.14,182.08,44.28]
[1755792637289,7.75941785,182.09,182.08,44.28]
[1755792637695,0.28432314,182.09,182.08,44.28]
[1755792637899,0.28432314,182.08,182.07,44.28]
[1755792638605,7.75941785,182.08,182.07,44.28]
[1755792639611,7.75941785,182.08,182.05,0.71]
[1755792639810,7.75941785,182.08,182.02,79.8]
[1755792640011,0.28432314,182.05,181.98,0.71]
[1755792640221,7.47509471,182.01,181.98,0.71]
[1755792640401,7.47509471,181.99,181.97,0.03]
[1755792640599,7.47509471,181.98,181.97,0.03]
[1755792640799,7.47509471,181.98,181.97,44.29]
[1755792641428,7.47509471,181.98,181.97,45.0]
[1755792642217,7.75941785,181.98,181.97,0.03]
[1755792643487,0.72,182.04,181.97,0.74]
[1755792643812,0.72,182.07,181.98,77.73509471]
[1755792643992,7.47509471,182.03,181.98,77.73509471]
[1755792644190,7.47509471,182.03,181.99,0.71]
[1755792644406,7.47509471,182.03,182.0,0.71]
[1755792644724,7.47509471,182.03,182.01,44.26]
[1755792644894,7.47509471,182.02,182.01,44.26]
[1755792645291,0.72,182.11,182.01,52.44509471]
[1755792645597,4.50657478,182.12,182.04,33.47509471]
[1755792645819,0.28432314,182.07,182.05,44.26]
[1755792646126,0.28432314,182.07,182.06,44.26]
[1755792646295,0.14216157,182.07,182.06,44.26]
[1755792646494,4.50657478,182.12,182.06,124.77]
[1755792646721,7.47509471,182.11,182.07,0.66]
[1755792646924,4.50657478,182.12,182.08,0.66]
[1755792647096,7.47509471,182.1,182.09,44.26]
[1755792647601,7.47509471,182.11,182.09,44.92]
[1755792648294,4.50657478,182.12,182.09,44.92]
[1755792648508,4.50657478,182.12,182.1,0.66]
[1755792648714,12.12383106,182.12,182.11,44.26]
[1755792649212,11.98166949,182.12,182.11,44.26]
[1755792650125,4.50657478,182.12,182.11,44.26]
[1755792650296,11.98166949,182.12,182.11,44.26]
[1755792650498,4.50657478,182.12,182.11,124.72]
[1755792650708,0.06,182.15,182.11,132.19509471]
[1755792650909,0.06,182.15,182.12,8.13509471]
[1755792651223,0.06,182.15,182.13,44.26]
[1755792651410,0.06,182.15,182.13,44.92]
[1755792651608,0.06,182.15,182.14,0.66]
[1755792651809,0.06,182.15,182.14,80.46]
[1755792653527,0.06,182.15,182.14,124.72]
[1755792654237,0.06,182.15,182.14,80.46]
[1755792654401,0.06,182.15,182.14,124.7]
[1755792654605,0.06,182.15,182.14,65.97068872]
[1755792656701,0.06,182.15,182.14,26.0]
[1755792656906,7.53509471,182.15,182.14,26.0]
[1755792657102,7.81941785,182.15,182.14,44.24]
[1755792657329,7.81941785,182.15,182.09,0.66]
[1755792657330,0.28432314,182.14,182.1,26.0]
[1755792657627,0.28432314,182.14,182.11,44.24]
[1755792658216,0.28432314,182.14,182.1,26.0]
[1755792658432,0.28432314,182.14,182.11,44.24]
[1755792658614,0.28432314,182.14,182.11,44.9]
[1755792658615,7.47509471,182.12,182.11,44.9]
[1755792658932,7.47509471,182.12,182.11,44.24]
[1755792660305,7.47509471,182.12,182.0,13.76582063]
[1755792660507,7.47509471,182.08,182.06,0.66]
[1755792660717,7.47509471,182.09,182.07,44.88]
[1755792660913,7.47509471,182.1,182.08,70.88]
[1755792661116,7.47509471,182.1,182.09,0.66]
[1755792661319,7.47509471,182.1,182.08,70.22]
[1755792662238,7.47509471,182.09,182.08,70.22]
[1755792662847,7.47509471,182.09,182.08,124.02]
[1755792663010,7.75941785,182.09,182.08,79.8]
[1755792663210,7.75941785,182.09,182.08,124.02]
[1755792663411,0.06,182.12,182.08,124.02]
[1755792663636,7.47509471,182.09,182.08,124.68]
[1755792663839,0.28432314,182.11,182.08,124.02]
[1755792664025,0.06,182.12,182.09,0.66]
[1755792664222,0.06,182.12,182.08,131.49509471]
[1755792664223,0.06,182.12,182.1,44.88]
[1755792664412,0.06,182.12,182.1,124.68]
[1755792664611,0.06,182.12,182.11,0.66]
[1755792664838,0.06,182.12,182.11,80.46]
[1755792665044,0.06,182.12,182.11,21.73068872]
[1755792666042,0.06,182.12,182.11,53.22187536]
[1755792666246,0.06,182.12,182.11,27.77099402]
[1755792666538,0.06,182.12,182.11,71.44187536]
[1755792667045,0.06,182.12,182.11,71.99099402]
[1755792668142,0.06,182.12,182.11,71.44187536]
[1755792669029,0.06,182.12,182.11,65.95068872]
[1755792669230,0.06,182.12,182.11,71.44187536]
[1755792670848,0.06,182.12,182.11,63.96678065]
[1755792671030,0.06,182.12,182.11,71.44187536]
[1755792673352,0.06,182.15,182.14,79.68]
[1755792673528,0.06,182.15,182.14,123.88]
[1755792674048,0.06,182.15,182.14,132.01509471]
[1755792674227,0.06,182.15,182.14,124.54]
[1755792674434,0.06,182.15,182.14,123.88]
[1755792674940,0.06,182.15,182.14,124.54]
[1755792675520,0.06,182.15,182.14,177.10097092]
[1755792675721,0.06,182.15,182.14,151.10097092]
[1755792676622,0.06,182.15,182.14,285.10097092]
[1755792677852,0.06,182.18,182.17,13.59559401]
[1755792678023,0.06,182.18,182.17,65.81962652]
[1755792678224,0.06,182.18,182.17,66.50962652]
[1755792678850,0.06,182.18,182.17,71.99900457]
[1755792679329,0.2,182.19,182.18,21.07068872]
[1755792679532,0.2,182.19,182.18,145.62068872]
[1755792680431,0.2,182.19,182.18,162.16068872]
[1755792680744,0.2,182.19,182.18,151.39408859]
[1755792680958,0.06,182.28,182.26,26.0]
[1755792681155,0.06,182.28,182.27,44.18]
[1755792681528,0.06,182.28,182.27,51.65509471]
[1755792682233,0.06,182.28,182.27,44.18]
[1755792682425,0.06,182.28,182.27,51.65509471]
[1755792682751,0.06,182.28,182.27,44.18]
[1755792682922,0.06,182.28,182.27,51.65509471]
[1755792684023,0.06,182.28,182.27,44.18]
[1755792684420,0.06,182.28,182.27,51.65509471]
[1755792685244,0.06,182.3,182.29,79.62]
[1755792685440,0.06,182.3,182.29,123.78]
[1755792685655,0.73,182.3,182.29,123.78]
[1755792685830,0.06,182.3,182.29,123.78]
[1755792686226,0.73,182.3,182.29,123.78]
[1755792686681,0.06,182.3,182.29,123.78]
[1755792688434,0.06,182.3,182.29,122.78]
[1755792689557,0.06,182.3,182.29,122.76]
[1755792689766,0.06,182.3,182.29,136.35559401]
[1755792689932,0.06,182.3,182.29,92.21559401]
[1755792690556,0.06,182.3,182.29,136.35559401]
[1755792691147,7.81509471,182.3,182.29,122.76]
[1755792691538,0.34,182.3,182.29,122.76]
[1755792691727,7.81509471,182.3,182.29,122.76]
[1755792692241,0.06,182.3,182.29,141.84135845]
[1755792692440,0.06,182.3,182.29,143.83068872]
[1755792692647,0.06,182.3,182.29,122.76]
[1755792694340,7.81509471,182.3,182.29,78.62]
[1755792694545,8.09941785,182.3,182.29,122.76]
[1755792694761,8.09941785,182.3,182.25,134.0]
[1755792694762,0.28432314,182.29,182.25,78.62]
[1755792695029,0.28,182.28,182.26,44.14]
[1755792695246,0.28,182.28,182.27,44.12]
[1755792695463,0.28,182.27,182.24,104.62]
[1755792695632,0.28,182.27,182.25,44.12]
[1755792695956,0.28432314,182.29,182.25,44.12]
[1755792695957,0.28,182.26,182.25,44.12]
[1755792696158,7.75509471,182.26,182.25,44.12]
[1755792696341,7.47509471,182.26,182.25,44.12]
[1755792696546,7.47509471,182.27,182.25,44.12]
[1755792696743,0.67,182.26,182.25,44.12]
[1755792696950,0.28432314,182.25,182.2,104.62]
[1755792697136,7.47509471,182.21,182.16,0.69]
[1755792697338,8.14509471,182.2,182.13,6.18048781]
[1755792697544,0.28432314,182.22,182.17,33.47509471]
[1755792697744,7.75941785,182.22,182.18,44.12]
[1755792697947,8.42941785,182.22,182.18,44.12]
[1755792698749,0.28432314,182.22,182.19,8.16509471]
[1755792699051,0.28432314,182.22,182.2,44.12]
[1755792699254,7.75941785,182.22,182.14,5.49020759]
[1755792699443,7.75941785,182.22,182.15,44.12]
[1755792699444,7.47509471,182.19,182.15,44.12]
[1755792699762,8.14509471,182.2,182.15,7.47509471]
[1755792699940,8.14509471,182.2,182.16,44.12]
[1755792700341,0.67,182.19,182.16,44.12]
[1755792700943,8.14509471,182.19,182.16,44.12]
[1755792701261,0.67,182.19,182.16,44.15]
[1755792701463,7.47509471,182.2,182.16,44.15]
[1755792701637,0.28432314,182.19,182.16,44.15]
[1755792701845,0.67,182.18,182.17,44.12]
[1755792702039,7.47509471,182.19,182.17,44.12]
[1755792702258,8.14509471,182.19,182.17,44.12]
[1755792702444,0.67,182.18,182.17,44.12]
[1755792702942,8.14509471,182.18,182.17,44.12]
[1755792703366,7.47509471,182.19,182.17,44.12]
[1755792703675,7.75941785,182.2,182.17,44.12]
[1755792703842,8.42941785,182.2,182.17,44.12]
[1755792704534,7.75941785,182.2,182.17,44.12]
[1755792704944,8.42941785,182.2,182.17,44.12]
[1755792705242,7.47509471,182.19,182.17,44.12]
[1755792705496,8.42941785,182.18,182.17,44.12]
[1755792705865,0.28432314,182.17,182.16,0.03]
[1755792706090,8.42941785,182.17,182.16,0.03]
[1755792707488,7.75941785,182.17,182.16,0.03]
[1755792707791,0.28432314,182.17,182.16,0.03]
[1755792707983,7.61725628,182.19,182.16,0.03]
[1755792708285,7.75941785,182.19,182.16,0.03]
[1755792708459,0.28432314,182.17,182.16,0.03]
[1755792708663,7.47509471,182.21,182.17,0.69]
[1755792708886,7.47509471,182.22,182.17,8.16509471]
[1755792709080,0.28432314,182.21,182.17,8.16509471]
[1755792709393,7.61725628,182.21,182.17,0.69]
[1755792709990,0.14216157,182.2,182.17,0.69]
[1755792711365,0.14216157,182.2,182.16,51.62509471]
[1755792711680,7.75941785,182.17,182.16,0.03]
[1755792712072,0.28432314,182.17,182.16,0.03]
[1755792712274,0.28432314,182.17,182.16,0.72]
[1755792712487,0.28432314,182.17,182.16,0.03]
[1755792714806,8.42941785,182.17,182.16,0.03]
[1755792720372,5.52277254,182.17,182.16,0.03]
[1755792720778,0.28432314,182.17,182.16,0.03]
[1755792720980,30.71061097,182.17,182.16,0.03]
[1755792721276,30.85277254,182.17,182.16,0.03]
[1755792721480,4.85277254,182.17,182.16,0.03]
[1755792722413,5.52277254,182.17,182.16,0.03]
[1755792722917,4.85277254,182.17,182.16,0.03]
[1755792723907,0.14216157,182.17,182.16,0.03]
[1755792724241,4.85277254,182.17,182.16,0.03]
[1755792726716,5.52277254,182.17,182.16,0.03]
[1755792727098,10.09122194,182.17,182.16,0.03]
[1755792727797,5.52277254,182.17,182.16,0.03]
[1755792728484,5.52277254,182.17,182.14,0.03]
[1755792728485,26.0,182.15,182.14,0.03]
[1755792728722,44.44836655,182.15,182.14,0.03]
[1755792729022,45.11836655,182.15,182.14,0.03]
[1755792729310,31.52277254,182.15,182.14,0.03]
[1755792729807,26.95432314,182.15,182.14,0.03]
[1755792730014,30.85277254,182.15,182.14,0.03]
[1755792730900,31.52277254,182.15,182.14,0.03]
[1755792731517,30.85277254,182.15,182.14,0.03]
[1755792733424,30.5684494,182.15,182.14,0.03]
[1755792733942,30.85277254,182.15,182.14,0.03]
[1755792734502,4.85277254,182.15,182.14,0.72]
[1755792736311,0.28432314,182.15,182.14,0.72]
[1755792736628,4.85277254,182.15,182.14,0.72]
[1755792737006,0.28432314,182.15,182.14,0.72]
[1755792737220,4.85277254,182.15,182.14,0.72]
[1755792737527,0.28432314,182.15,182.14,0.72]
[1755792737901,0.14216157,182.15,182.14,0.72]
[1755792738101,4.85277254,182.15,182.14,0.03]
[1755792740542,0.06,182.2,182.14,79.3]
[1755792740745,0.06,182.2,182.15,0.65]
[1755792740910,4.5684494,182.19,182.15,79.27]
[1755792741108,4.6284494,182.2,182.16,0.65]
[1755792741316,0.06,182.2,182.16,79.27]
[1755792741630,0.06,182.2,182.17,5.2184494]
[1755792741808,0.06,182.2,182.17,83.8384494]
[1755792742007,0.06,182.2,182.18,0.65]
[1755792742205,0.06,182.2,182.19,4.5684494]
[1755792742413,0.06,182.2,182.18,83.8384494]
[1755792742626,0.06,182.2,182.19,0.65]
[1755792742813,0.06,182.2,182.19,5.2184494]
[1755792743649,0.06,182.2,182.19,0.65]
[1755792743945,0.06,182.2,182.19,49.2984494]
[1755792745249,0.06,182.2,182.19,0.65]
[1755792745426,0.06,182.2,182.19,44.71]
[1755792747155,0.06,182.2,182.19,49.2784494]
[1755792748336,0.06,182.2,182.19,44.71]
[1755792749285,4.6284494,182.2,182.17,0.65]
[1755792749415,0.06,182.2,182.18,44.06]
[1755792749618,0.06,182.2,182.17,44.06]
[1755792749847,0.06,182.2,182.14,0.03]
[1755792750031,0.67,182.19,182.15,44.04]
[1755792750217,0.67,182.18,182.14,0.03]
[1755792750630,4.85277254,182.15,182.14,0.03]
[1755792752452,7.72877605,182.15,182.14,0.03]
[1755792753957,8.00877605,182.15,182.14,0.03]
[1755792754956,26.56432314,182.15,182.14,0.03]
[1755792755268,0.28432314,182.15,182.14,0.03]
[1755792755567,7.72877605,182.15,182.14,0.03]
[1755792757239,8.39877605,182.15,182.14,0.03]
[1755792758671,26.28432314,182.14,182.13,0.03]
[1755792758862,34.39877605,182.14,182.13,0.03]
[1755792759368,33.72877605,182.14,182.13,0.03]
[1755792763350,34.39877605,182.14,182.13,0.03]
[1755792764067,33.72877605,182.14,182.13,0.03]
[1755792764944,26.28432314,182.14,182.13,0.68]
[1755792765141,33.72877605,182.14,182.13,0.03]
[1755792765445,33.44445291,182.14,182.13,0.68]
[1755792765646,7.44445291,182.14,182.13,0.68]
[1755792765942,0.06,182.18,182.13,0.68]
[1755792766164,7.44445291,182.14,182.13,79.83]
[1755792766362,7.44445291,182.14,182.13,0.03]
[1755792766576,0.06,182.18,182.13,0.03]
[1755792766577,7.44445291,182.15,182.13,0.71]
[1755792766874,0.06,182.18,182.13,0.03]
[1755792767081,7.58661448,182.14,182.13,0.71]
[1755792767287,0.28432314,182.14,182.13,80.51]
[1755792767462,0.06,182.18,182.13,80.51]
[1755792767654,0.06,182.18,182.16,7.44445291]
[1755792768181,7.44445291,182.28,182.21,26.0]
[1755792768486,7.44445291,182.22,182.18,0.68]
[1755792768650,26.65,182.24,182.16,0.68]
[1755792769167,7.44445291,182.2,182.16,0.68]
[1755792769372,7.44445291,182.21,182.16,8.12445291]
[1755792769553,0.65,182.26,182.17,0.68]
[1755792769554,7.44445291,182.2,182.17,0.68]
[1755792769754,7.44445291,182.2,182.18,0.68]
[1755792770895,26.0,182.24,182.18,0.68]
[1755792771258,7.44445291,182.21,182.18,0.68]
[1755792771982,7.44445291,182.2,182.18,0.68]
[1755792772576,7.44445291,182.21,182.18,0.68]
[1755792773247,26.0,182.24,182.19,0.68]
[1755792773451,0.28432314,182.21,182.19,0.68]
[1755792773676,7.44445291,182.22,182.19,0.68]
[1755792774467,26.93432314,182.24,182.2,0.68]
[1755792774468,7.72877605,182.23,182.2,0.68]
[1755792775603,0.06,182.27,182.21,0.68]
[1755792775751,0.14216157,182.25,182.21,8.12445291]
[1755792775950,7.72877605,182.25,182.22,0.68]
[1755792776574,7.72877605,182.25,182.2,8.12445291]
[1755792776794,7.72877605,182.25,182.21,8.12445291]
[1755792777082,0.28432314,182.25,182.21,7.44445291]
[1755792777279,0.28432314,182.25,182.22,0.68]
[1755792778072,7.44445291,182.26,182.22,0.68]
[1755792778261,0.06,182.27,182.23,7.44445291]
[1755792778458,0.06,182.27,182.25,7.44445291]
[1755792778658,0.06,182.27,182.25,87.24445291]
[1755792778859,0.06,182.27,182.25,87.92445291]
[1755792779084,0.06,182.27,182.26,8.12445291]
[1755792779869,0.06,182.27,182.26,87.92445291]
[1755792780167,0.06,182.27,182.26,80.48]
[1755792780366,0.06,182.27,182.24,44.0]
[1755792780600,0.06,182.27,182.25,4.56089279]
[1755792780774,0.06,182.27,182.26,4.56089279]
[1755792780974,0.06,182.27,182.26,5.24089279]
[1755792781481,0.06,182.27,182.26,85.04089279]
[1755792784415,0.06,182.27,182.26,87.91010846]
[1755792785080,0.06,182.27,182.26,80.48]
[1755792785281,0.06,182.27,182.26,79.8]
[1755792785780,0.06,182.27,182.25,79.8]
[1755792785998,7.49010846,182.27,182.26,43.98]
[1755792786198,8.14010846,182.27,182.25,43.96]
[1755792786373,7.43010846,182.26,182.25,43.96]
[1755792786577,7.43010846,182.26,182.22,106.48]
[1755792786578,7.43010846,182.26,182.22,80.48]
[1755792786816,7.43010846,182.23,182.19,80.48]
[1755792786986,7.43010846,182.24,182.2,43.96]
[1755792787180,7.43010846,182.23,182.2,79.8]
[1755792787390,7.7744316,182.27,182.19,0.03]
[1755792787611,0.28432314,182.23,182.2,43.96]
[1755792787781,0.65,182.22,182.19,0.03]
[1755792787988,0.65,182.21,182.19,0.03]
[1755792788396,0.65,182.21,182.19,43.99]
[1755792788715,7.43010846,182.2,182.19,43.99]
[1755792789008,7.43010846,182.21,182.19,43.99]
[1755792789205,7.43010846,182.2,182.19,0.03]
[1755792789511,7.43010846,182.2,182.19,43.99]
[1755792789709,0.65,182.21,182.19,43.99]
[1755792789710,7.43010846,182.21,182.19,43.99]
[1755792790189,0.28432314,182.21,182.19,44.67]
[1755792790511,0.28432314,182.21,182.19,43.99]
[1755792790809,0.28432314,182.21,182.2,43.96]
[1755792791831,0.28432314,182.21,182.19,0.03]
[1755792791990,8.3644316,182.2,182.19,0.03]
[1755792793782,0.93432314,182.2,182.19,0.03]
[1755792793986,8.3644316,182.2,182.19,0.03]
[1755792795715,21.96002561,182.2,182.19,0.03]
[1755792796213,26.0,182.17,182.13,0.03]
[1755792796408,7.43010846,182.14,182.13,0.03]
[1755792797613,0.28432314,182.16,182.13,0.73]
[1755792797819,7.7144316,182.14,182.13,0.73]
[1755792798404,7.7144316,182.14,182.13,0.03]
[1755792799004,2.201612,182.2,182.13,0.73]
[1755792799347,7.7144316,182.17,182.13,0.73]
[1755792799523,7.43010846,182.17,182.13,0.73]
[1755792799821,7.43010846,182.14,182.13,0.03]
[1755792800012,7.43010846,182.15,182.13,0.03]
[1755792800521,7.43010846,182.15,182.13,0.73]
[1755792800894,7.57227003,182.17,182.14,0.7]
[1755792801097,7.43010846,182.17,182.14,0.7]
[1755792802097,0.28432314,182.19,182.14,0.7]
[1755792802322,7.43010846,182.17,182.14,0.7]
[1755792802629,0.28432314,182.19,182.13,0.03]
[1755792802834,7.49010846,182.2,182.15,0.7]
[1755792803037,7.49010846,182.2,182.14,7.43010846]
[1755792803038,7.43010846,182.18,182.14,7.43010846]
[1755792803212,7.43010846,182.18,182.16,0.7]
[1755792803530,0.06,182.2,182.16,44.66]
[1755792803531,7.43010846,182.19,182.16,44.66]
[1755792804035,7.43010846,182.19,182.16,43.96]
[1755792804036,0.28432314,182.19,182.16,43.96]
[1755792804215,0.06,182.2,182.17,8.13010846]
[1755792804412,0.06,182.2,182.17,79.8]
[1755792804812,7.49010846,182.2,182.18,43.96]
[1755792805014,0.06,182.2,182.19,0.7]
[1755792805219,0.06,182.2,182.19,8.13010846]
[1755792805416,0.06,182.2,182.19,44.66]
[1755792805607,0.06,182.2,182.19,43.96]
[1755792805817,7.49010846,182.2,182.19,43.96]
[1755792806127,0.06,182.2,182.19,44.66]
[1755792806615,0.06,182.2,182.19,52.09010846]
[1755792807013,0.06,182.2,182.19,44.66]
[1755792807610,0.06,182.2,182.19,52.09010846]
[1755792807832,0.06,182.2,182.19,145.48570247]
[1755792808216,0.06,182.2,182.16,79.8]
[1755792808428,7.43010846,182.19,182.17,44.66]
[1755792808736,0.06,182.2,182.18,0.7]
[1755792809032,0.06,182.2,182.18,8.13010846]
[1755792809534,0.06,182.2,182.19,0.7]
[1755792810330,0.06,182.2,182.17,7.43010846]
[1755792810538,0.06,182.2,182.19,0.7]
[1755792811249,0.06,182.2,182.19,8.13010846]
[1755792811847,0.06,182.2,182.19,101.52570247]
[1755792812518,0.06,182.2,182.19,107.01447792]
[1755792813045,0.06,182.2,182.19,109.21451692]
[1755792813411,0.06,182.2,182.19,80.5]
[1755792813616,0.06,182.2,182.19,124.44]
[1755792813834,7.10723398,182.23,182.19,123.74]
[1755792814219,7.76723398,182.23,182.19,123.74]
[1755792814626,7.43010846,182.22,182.19,123.74]
[1755792815833,0.06,182.24,182.2,0.7]
[1755792816033,0.06,182.24,182.21,44.64]
[1755792816642,7.49010846,182.24,182.21,44.64]
[1755792816835,0.06,182.24,182.21,44.64]
[1755792817033,7.49010846,182.24,182.21,44.64]
[1755792817428,0.06,182.24,182.21,44.64]
[1755792817830,0.06,182.24,182.23,33.43010846]
[1755792818043,0.06,182.24,182.23,77.37010846]
[1755792818247,0.06,182.24,182.23,78.07010846]
[1755792818821,0.06,182.24,182.23,34.13010846]
[1755792819147,0.06,182.24,182.23,78.05010846]
[1755792819532,0.06,182.24,182.23,83.53767911]
[1755792819921,0.06,182.24,182.23,34.13010846]
[1755792820127,0.06,182.24,182.23,78.05010846]
[1755792821444,0.06,182.24,182.23,157.85010846]
[1755792822031,0.06,182.27,182.26,39.59559401]
[1755792822232,0.06,182.27,182.26,90.94570247]
[1755792822565,0.06,182.29,182.27,13.59559401]
[1755792822726,0.06,182.29,182.28,65.494309]
[1755792822930,0.06,182.29,182.28,71.13176786]
[1755792823526,0.06,182.29,182.28,14.29559401]
[1755792823722,0.06,182.29,182.27,13.59559401]
[1755792823930,0.06,182.29,182.28,70.6]
[1755792824126,0.06,182.29,182.28,91.62570247]
[1755792825260,0.06,182.29,182.28,71.11176786]
[1755792825760,0.06,182.29,182.28,53.21176786]
[1755792825929,0.06,182.29,182.28,71.11176786]
[1755792826538,0.06,182.29,182.28,65.62570247]
[1755792827045,0.06,182.29,182.28,71.11176786]
[1755792827252,0.06,182.31,182.28,71.11176786]
[1755792827431,7.43010846,182.34,182.32,79.56]
[1755792827630,8.12010846,182.34,182.33,43.9]
[1755792827855,7.43010846,182.35,182.32,79.56]
[1755792828031,7.43010846,182.35,182.33,43.9]
[1755792828229,0.69,182.37,182.33,43.9]
[1755792828230,7.43010846,182.36,182.33,43.9]
[1755792828430,13.59559401,182.45,182.33,79.56]
[1755792828431,7.43010846,182.34,182.33,79.56]
[1755792828733,8.4044316,182.34,182.33,43.9]
[1755792829052,0.28432314,182.33,182.28,79.56]
[1755792829256,7.43010846,182.29,182.25,79.56]
[1755792829429,7.43010846,182.26,182.22,80.22]
[1755792829626,26.0,182.35,182.23,44.56]
[1755792829827,26.0,182.35,182.26,7.43010846]
[1755792829828,7.43010846,182.31,182.26,7.43010846]
[1755792830051,7.43010846,182.31,182.27,44.56]
[1755792830249,8.12010846,182.32,182.27,51.99010846]
[1755792831159,8.12010846,182.31,182.28,43.88]
[1755792831624,7.43010846,182.32,182.28,43.88]
[1755792831831,7.43010846,182.32,182.28,44.54]
[1755792832127,0.69,182.37,182.31,33.43010846]
[1755792832344,7.43010846,182.33,182.31,26.0]
[1755792832547,7.43010846,182.38,182.27,13.59559401]
[1755792832548,8.12010846,182.32,182.27,13.59559401]
[1755792832734,8.12010846,182.31,182.28,43.88]
[1755792832926,8.12010846,182.31,182.26,33.43010846]